[Event "Titled Tuesday Blitz January 31 Early 2023"]
[White "Begunov, Konstantin"]
[Black "Taspinar, Yanki"]
[WhiteFideId "4118510"]
[BlackFideId "34561188"]
[WhiteElo "2325"]
[BlackElo "2262"]
[Result "0-1"]
[Round "03"]
[TimeControl "180+2"]
[Date "2023.01.31"]
[WhiteClock "0:00:09"]
[BlackClock "0:01:46"]

1. d4 {[%clk 0:03:00]}  d5 {[%clk 0:02:53]} 2. c4 {[%clk 0:03:00]}  Nc6 {[%clk 0:02:52]} 3. cxd5 {[%clk 0:02:55]}  Qxd5 {[%clk 0:02:52]} 4. e3 {[%clk 0:02:56]}  e5 {[%clk 0:02:42]} 5. Nc3 {[%clk 0:02:56]}  Bb4 {[%clk 0:02:42]} 6. Bd2 {[%clk 0:02:56]}  Qd8 {[%clk 0:02:38]} 7. dxe5 {[%clk 0:02:47]}  Nge7 {[%clk 0:02:37]} 8. a3 {[%clk 0:02:42]}  Ba5 {[%clk 0:02:33]} 9. f4 {[%clk 0:02:30]}  O-O {[%clk 0:02:31]} 10. Nf3 {[%clk 0:02:31]}  Bf5 {[%clk 0:02:20]} 11. Bc4 {[%clk 0:02:24]}  Bd3 {[%clk 0:02:19]} 12. Bxd3 {[%clk 0:01:43]}  Qxd3 {[%clk 0:02:19]} 13. Qe2 {[%clk 0:01:44]}  Qc2 {[%clk 0:02:20]} 14. b4 {[%clk 0:01:43]}  Bb6 {[%clk 0:02:19]} 15. Ra2 {[%clk 0:01:41]}  Qb3 {[%clk 0:02:15]} 16. O-O {[%clk 0:01:04]}  Nd5 {[%clk 0:02:15]} 17. Qd1 {[%clk 0:00:45]}  Qc4 {[%clk 0:02:13]} 18. Rc2 {[%clk 0:00:29]}  Nxe3 {[%clk 0:02:12]} 19. Bxe3 {[%clk 0:00:26]}  Bxe3+ {[%clk 0:02:13]} 20. Kh1 {[%clk 0:00:26]}  Rad8 {[%clk 0:02:07]} 21. Qe2 {[%clk 0:00:18]}  Qxf4 {[%clk 0:01:59]} 22. b5 {[%clk 0:00:11]}  Nxe5 {[%clk 0:01:54]} 23. Nxe5 {[%clk 0:00:11]}  Qxe5 {[%clk 0:01:55]} 24. Re1 {[%clk 0:00:11]}  Rfe8 {[%clk 0:01:53]} 25. Nd1 {[%clk 0:00:11]}  Bd4 {[%clk 0:01:52]} 26. Qxe5 {[%clk 0:00:08]}  Rxe5 {[%clk 0:01:53]} 27. Rf1 {[%clk 0:00:05]}  Bb6 {[%clk 0:01:50]} 28. a4 {[%clk 0:00:05]}  Rde8 {[%clk 0:01:48]} 29. g3 {[%clk 0:00:05]}  f5 {[%clk 0:01:46]} 30. Kg2 {[%clk 0:00:05]}  g6 {[%clk 0:01:47]} 31. Nf2 {[%clk 0:00:03]}  Re2 {[%clk 0:01:46]} 32. Rxe2 {[%clk 0:00:02]}  Rxe2 {[%clk 0:01:47]} 33. Kf3 {[%clk 0:00:03]}  Rxf2+ {[%clk 0:01:47]} 34. Rxf2 {[%clk 0:00:04]}  Bxf2 {[%clk 0:01:47]} 35. Kxf2 {[%clk 0:00:05]}  Kf7 {[%clk 0:01:48]} 36. Ke3 {[%clk 0:00:05]}  Ke6 {[%clk 0:01:48]} 37. a5 {[%clk 0:00:06]}  a6 {[%clk 0:01:46]} 38. b6 {[%clk 0:00:07]}  cxb6 {[%clk 0:01:45]} 39. axb6 {[%clk 0:00:07]}  g5 {[%clk 0:01:46]} 40. Kd4 {[%clk 0:00:07]}  Kd6 {[%clk 0:01:46]} 41. h4 {[%clk 0:00:07]}  h6 {[%clk 0:01:46]} 42. h5 {[%clk 0:00:07]}  a5 {[%clk 0:01:46]} 43. Kc4 {[%clk 0:00:07]}  f4 {[%clk 0:01:46]} 44. gxf4 {[%clk 0:00:06]}  gxf4 {[%clk 0:01:47]} 45. Kd4 {[%clk 0:00:07]}  a4 {[%clk 0:01:47]} 46. Ke4 {[%clk 0:00:07]}  a3 {[%clk 0:01:48]} 47. Kxf4 {[%clk 0:00:08]}  a2 {[%clk 0:01:48]} 48. Kf5 {[%clk 0:00:09]}  a1=Q {[%clk 0:01:49]} 49. Kg6 {[%clk 0:00:09]}  Qc1 {[%clk 0:01:47]} 50. Kh7 {[%clk 0:00:09]}  Qg5 {[%clk 0:01:46]} 0-1


[Site "https://www.chess.com"]

[Event "Titled Tuesday Blitz January 31 Early 2023"]
[White "Wahedi, Ahmad Siar"]
[Black "Belozerov, Andrei"]
[WhiteFideId "4651260"]
[BlackFideId "4120213"]
[WhiteElo "2274"]
[BlackElo "2461"]
[Result "0-1"]
[Round "03"]
[TimeControl "180+2"]
[Date "2023.01.31"]
[WhiteClock "0:00:18"]
[BlackClock "0:00:36"]

1. e4 {[%clk 0:03:00]}  c5 {[%clk 0:02:59]} 2. Nf3 {[%clk 0:03:00]}  Nc6 {[%clk 0:02:59]} 3. Nc3 {[%clk 0:02:59]}  g6 {[%clk 0:02:59]} 4. d4 {[%clk 0:02:58]}  cxd4 {[%clk 0:02:59]} 5. Nxd4 {[%clk 0:02:59]}  Bg7 {[%clk 0:02:59]} 6. Be3 {[%clk 0:02:58]}  Nf6 {[%clk 0:03:00]} 7. f3 {[%clk 0:02:58]}  O-O {[%clk 0:02:59]} 8. Qd2 {[%clk 0:02:58]}  d5 {[%clk 0:02:59]} 9. exd5 {[%clk 0:02:53]}  Nxd5 {[%clk 0:02:58]} 10. Nxc6 {[%clk 0:02:47]}  bxc6 {[%clk 0:02:57]} 11. O-O-O {[%clk 0:02:46]}  Rb8 {[%clk 0:02:47]} 12. Bd4 {[%clk 0:01:22]}  e5 {[%clk 0:02:45]} 13. Bc5 {[%clk 0:01:19]}  Be6 {[%clk 0:02:44]} 14. Bc4 {[%clk 0:01:12]}  Re8 {[%clk 0:02:27]} 15. Ne4 {[%clk 0:01:11]}  h6 {[%clk 0:02:16]} 16. Kb1 {[%clk 0:01:01]}  f5 {[%clk 0:02:14]} 17. Nc3 {[%clk 0:00:46]}  e4 {[%clk 0:02:12]} 18. Bxd5 {[%clk 0:00:44]}  Bxd5 {[%clk 0:02:05]} 19. Bd4 {[%clk 0:00:43]}  exf3 {[%clk 0:01:58]} 20. Bxg7 {[%clk 0:00:42]}  Kxg7 {[%clk 0:01:53]} 21. Nxd5 {[%clk 0:00:40]}  cxd5 {[%clk 0:01:40]} 22. Qc3+ {[%clk 0:00:40]}  Qf6 {[%clk 0:01:39]} 23. Qxf6+ {[%clk 0:00:38]}  Kxf6 {[%clk 0:01:39]} 24. gxf3 {[%clk 0:00:38]}  Re3 {[%clk 0:01:26]} 25. Rhf1 {[%clk 0:00:39]}  Ke5 {[%clk 0:01:24]} 26. Kc1 {[%clk 0:00:37]}  g5 {[%clk 0:01:22]} 27. Rf2 {[%clk 0:00:37]}  d4 {[%clk 0:01:19]} 28. b3 {[%clk 0:00:35]}  h5 {[%clk 0:01:16]} 29. Kb2 {[%clk 0:00:35]}  g4 {[%clk 0:01:14]} 30. fxg4 {[%clk 0:00:34]}  hxg4 {[%clk 0:01:14]} 31. Rfd2 {[%clk 0:00:33]}  Rd8 {[%clk 0:01:11]} 32. Rf2 {[%clk 0:00:28]}  f4 {[%clk 0:01:10]} 33. Rg1 {[%clk 0:00:28]}  Rg8 {[%clk 0:01:08]} 34. Rfg2 {[%clk 0:00:29]}  f3 {[%clk 0:01:05]} 35. Rd2 {[%clk 0:00:23]}  Ke4 {[%clk 0:00:57]} 36. Rgd1 {[%clk 0:00:22]}  Rd8 {[%clk 0:00:57]} 37. Rg1 {[%clk 0:00:20]}  Kf4 {[%clk 0:00:40]} 38. Rgd1 {[%clk 0:00:20]}  Re2 {[%clk 0:00:39]} 39. Rxd4+ {[%clk 0:00:19]}  Rxd4 {[%clk 0:00:39]} 40. Rxd4+ {[%clk 0:00:20]}  Ke3 {[%clk 0:00:38]} 41. Rd8 {[%clk 0:00:17]}  f2 {[%clk 0:00:38]} 42. Rf8 {[%clk 0:00:18]}  Re1 {[%clk 0:00:36]} 0-1


[Site "https://www.chess.com"]

[Event "Titled Tuesday Blitz January 31 Early 2023"]
[White "Kononenko, Dmitry"]
[Black "Melaugh, Shane"]
[WhiteFideId "14113538"]
[BlackFideId "2509580"]
[WhiteElo "2256"]
[BlackElo "2115"]
[Result "1-0"]
[Round "03"]
[TimeControl "180+2"]
[Date "2023.01.31"]
[WhiteClock "0:01:02"]
[BlackClock "0:00:45"]

1. e4 {[%clk 0:02:59]}  e6 {[%clk 0:02:57]} 2. Qe2 {[%clk 0:02:58]}  c5 {[%clk 0:02:54]} 3. g3 {[%clk 0:02:58]}  Nc6 {[%clk 0:02:55]} 4. Nf3 {[%clk 0:02:59]}  g6 {[%clk 0:02:55]} 5. Bg2 {[%clk 0:02:59]}  Bg7 {[%clk 0:02:55]} 6. O-O {[%clk 0:02:59]}  Nge7 {[%clk 0:02:56]} 7. d3 {[%clk 0:02:59]}  h6 {[%clk 0:02:54]} 8. e5 {[%clk 0:02:51]}  Qc7 {[%clk 0:02:50]} 9. Re1 {[%clk 0:02:51]}  O-O {[%clk 0:02:47]} 10. Nc3 {[%clk 0:02:50]}  a6 {[%clk 0:02:46]} 11. h4 {[%clk 0:02:49]}  d5 {[%clk 0:02:41]} 12. exd6 {[%clk 0:02:49]}  Qxd6 {[%clk 0:02:41]} 13. Ne4 {[%clk 0:02:49]}  Qc7 {[%clk 0:02:28]} 14. Bf4 {[%clk 0:02:35]}  e5 {[%clk 0:02:26]} 15. Be3 {[%clk 0:02:31]}  Nd4 {[%clk 0:02:20]} 16. Qd1 {[%clk 0:02:21]}  Bg4 {[%clk 0:02:19]} 17. c3 {[%clk 0:02:19]}  f5 {[%clk 0:01:42]} 18. Nxc5 {[%clk 0:02:09]}  Qxc5 {[%clk 0:01:41]} 19. cxd4 {[%clk 0:02:09]}  exd4 {[%clk 0:01:42]} 20. Bf4 {[%clk 0:02:05]}  Nc6 {[%clk 0:01:39]} 21. Qd2 {[%clk 0:02:02]}  Kh7 {[%clk 0:01:38]} 22. Rac1 {[%clk 0:01:56]}  Qb4 {[%clk 0:01:35]} 23. Qxb4 {[%clk 0:01:28]}  Nxb4 {[%clk 0:01:35]} 24. Rc7 {[%clk 0:01:28]}  Rfe8 {[%clk 0:01:14]} 25. Rxe8 {[%clk 0:01:24]}  Rxe8 {[%clk 0:01:14]} 26. Be5 {[%clk 0:01:25]}  Rg8 {[%clk 0:01:12]} 27. Nxd4 {[%clk 0:01:22]}  Nxd3 {[%clk 0:01:10]} 28. Bf6 {[%clk 0:01:13]}  Kh8 {[%clk 0:01:10]} 29. Rxg7 {[%clk 0:01:13]}  Rxg7 {[%clk 0:01:09]} 30. Ne6 {[%clk 0:01:13]}  f4 {[%clk 0:01:03]} 31. Nxg7 {[%clk 0:01:11]}  Kg8 {[%clk 0:00:57]} 32. Bd5+ {[%clk 0:01:08]}  Kh7 {[%clk 0:00:54]} 33. Ne6 {[%clk 0:01:05]}  fxg3 {[%clk 0:00:46]} 34. fxg3 {[%clk 0:01:03]}  Nb4 {[%clk 0:00:45]} 35. Nf8# {[%clk 0:01:02]} 1-0


[Site "https://www.chess.com"]

[Event "Titled Tuesday Blitz January 31 Early 2023"]
[White "Kielinkei"]
[Black "Domingo Nunez, Alejandro"]
[BlackFideId "22245561"]
[WhiteElo "2440"]
[BlackElo "2338"]
[Result "1-0"]
[Round "03"]
[TimeControl "180+2"]
[Date "2023.01.31"]
[WhiteClock "0:00:37"]
[BlackClock "0:00:02"]

1. Nf3 {[%clk 0:03:00]}  g6 {[%clk 0:03:00]} 2. e4 {[%clk 0:02:59]}  Bg7 {[%clk 0:03:01]} 3. d4 {[%clk 0:03:00]}  c6 {[%clk 0:03:00]} 4. Be2 {[%clk 0:02:42]}  d5 {[%clk 0:03:00]} 5. exd5 {[%clk 0:02:42]}  cxd5 {[%clk 0:03:00]} 6. O-O {[%clk 0:02:42]}  Nc6 {[%clk 0:03:00]} 7. c3 {[%clk 0:02:40]}  Bg4 {[%clk 0:03:00]} 8. Bf4 {[%clk 0:02:39]}  e6 {[%clk 0:03:00]} 9. h3 {[%clk 0:02:38]}  Bxf3 {[%clk 0:03:00]} 10. Bxf3 {[%clk 0:02:39]}  Nge7 {[%clk 0:02:57]} 11. Nd2 {[%clk 0:02:39]}  O-O {[%clk 0:02:57]} 12. Nb3 {[%clk 0:02:35]}  Nf5 {[%clk 0:02:56]} 13. Nc5 {[%clk 0:02:32]}  b6 {[%clk 0:02:55]} 14. Nd3 {[%clk 0:02:30]}  Nd6 {[%clk 0:02:30]} 15. Re1 {[%clk 0:02:29]}  Qe7 {[%clk 0:02:28]} 16. Bxd5 {[%clk 0:02:18]}  Rac8 {[%clk 0:02:27]} 17. Bf3 {[%clk 0:02:08]}  Rfd8 {[%clk 0:02:27]} 18. d5 {[%clk 0:02:07]}  Na5 {[%clk 0:02:24]} 19. dxe6 {[%clk 0:02:06]}  Ndc4 {[%clk 0:02:22]} 20. exf7+ {[%clk 0:02:02]}  Qxf7 {[%clk 0:02:22]} 21. Qc2 {[%clk 0:01:30]}  Rxd3 {[%clk 0:01:43]} 22. Qxd3 {[%clk 0:01:30]}  Qxf4 {[%clk 0:01:43]} 23. b4 {[%clk 0:01:21]}  Ne5 {[%clk 0:00:19]} 24. Qd5+ {[%clk 0:01:14]}  Qf7 {[%clk 0:00:20]} 25. Qxf7+ {[%clk 0:01:07]}  Nxf7 {[%clk 0:00:20]} 26. bxa5 {[%clk 0:01:07]}  Bxc3 {[%clk 0:00:20]} 27. Rac1 {[%clk 0:01:04]}  Rc5 {[%clk 0:00:20]} 28. Re8+ {[%clk 0:01:01]}  Kg7 {[%clk 0:00:20]} 29. axb6 {[%clk 0:01:00]}  axb6 {[%clk 0:00:18]} 30. Re3 {[%clk 0:00:56]}  Bd4 {[%clk 0:00:13]} 31. Rxc5 {[%clk 0:00:55]}  Bxc5 {[%clk 0:00:14]} 32. Re6 {[%clk 0:00:52]}  Ng5 {[%clk 0:00:12]} 33. Rc6 {[%clk 0:00:50]}  Nxf3+ {[%clk 0:00:08]} 34. gxf3 {[%clk 0:00:51]}  Kh6 {[%clk 0:00:08]} 35. a4 {[%clk 0:00:50]}  Bd4 {[%clk 0:00:08]} 36. Rc4 {[%clk 0:00:46]}  Be5 {[%clk 0:00:05]} 37. Rb4 {[%clk 0:00:42]}  Bc7 {[%clk 0:00:06]} 38. Rc4 {[%clk 0:00:43]}  Bd6 {[%clk 0:00:05]} 39. f4 {[%clk 0:00:41]}  Be7 {[%clk 0:00:02]} 40. Rc6 {[%clk 0:00:39]}  Bd8 {[%clk 0:00:02]} 41. Rd6 {[%clk 0:00:37]}  Be7 {[%clk 0:00:03]} 42. Rxb6 {[%clk 0:00:37]}  Bc5 {[%clk 0:00:02]} 43. a5 {[%clk 0:00:37]} 1-0


[Site "https://www.chess.com"]

[Event "Titled Tuesday Blitz January 31 Early 2023"]
[White "Gonzalez, Francisco Silva"]
[Black "Korchmar, Vasiliy"]
[WhiteFideId "1512285"]
[BlackFideId "24131750"]
[WhiteElo "2021"]
[BlackElo "2438"]
[Result "0-1"]
[Round "03"]
[TimeControl "180+2"]
[Date "2023.01.31"]
[WhiteClock "0:01:13"]
[BlackClock "0:01:59"]

1. d4 {[%clk 0:02:51]}  Nf6 {[%clk 0:02:58]} 2. c4 {[%clk 0:02:47]}  c6 {[%clk 0:02:57]} 3. Nc3 {[%clk 0:02:46]}  d5 {[%clk 0:02:58]} 4. e3 {[%clk 0:02:46]}  e6 {[%clk 0:02:58]} 5. Nf3 {[%clk 0:02:45]}  Nbd7 {[%clk 0:02:59]} 6. Bd3 {[%clk 0:02:44]}  dxc4 {[%clk 0:02:58]} 7. Bxc4 {[%clk 0:02:45]}  Bd6 {[%clk 0:02:59]} 8. O-O {[%clk 0:02:43]}  O-O {[%clk 0:02:59]} 9. e4 {[%clk 0:02:43]}  e5 {[%clk 0:02:59]} 10. Bg5 {[%clk 0:02:42]}  h6 {[%clk 0:02:55]} 11. Bh4 {[%clk 0:02:42]}  exd4 {[%clk 0:02:56]} 12. Nxd4 {[%clk 0:02:41]}  Ne5 {[%clk 0:02:56]} 13. Bb3 {[%clk 0:02:41]}  Bb4 {[%clk 0:02:47]} 14. Re1 {[%clk 0:02:24]}  Ng6 {[%clk 0:02:45]} 15. Bg3 {[%clk 0:02:21]}  Bg4 {[%clk 0:02:46]} 16. Qd3 {[%clk 0:02:12]}  c5 {[%clk 0:02:45]} 17. e5 {[%clk 0:02:08]}  Qxd4 {[%clk 0:02:42]} 18. Qxg6 {[%clk 0:02:07]}  c4 {[%clk 0:02:32]} 19. Nb5 {[%clk 0:01:58]}  fxg6 {[%clk 0:02:10]} 20. Nxd4 {[%clk 0:01:56]}  cxb3 {[%clk 0:02:10]} 21. exf6 {[%clk 0:01:54]}  Bxe1 {[%clk 0:02:11]} 22. fxg7 {[%clk 0:01:50]}  Rfe8 {[%clk 0:02:09]} 23. Nxb3 {[%clk 0:01:45]}  Bb4 {[%clk 0:02:07]} 24. Nd4 {[%clk 0:01:45]}  Re1+ {[%clk 0:02:02]} 25. Rxe1 {[%clk 0:01:44]}  Bxe1 {[%clk 0:02:03]} 26. h3 {[%clk 0:01:43]}  Bd7 {[%clk 0:02:02]} 27. b3 {[%clk 0:01:39]}  Bc3 {[%clk 0:02:01]} 28. Nf3 {[%clk 0:01:36]}  Bxg7 {[%clk 0:02:01]} 29. Bf4 {[%clk 0:01:37]}  g5 {[%clk 0:02:01]} 30. Bd6 {[%clk 0:01:36]}  Rc8 {[%clk 0:02:00]} 31. a4 {[%clk 0:01:34]}  Rc1+ {[%clk 0:02:00]} 32. Kh2 {[%clk 0:01:33]}  Rb1 {[%clk 0:02:01]} 33. b4 {[%clk 0:01:33]}  Bxa4 {[%clk 0:02:01]} 34. g4 {[%clk 0:01:30]}  Bc6 {[%clk 0:01:59]} 35. Nd2 {[%clk 0:01:28]}  Rb2 {[%clk 0:01:59]} 36. Nc4 {[%clk 0:01:25]}  Rxf2+ {[%clk 0:01:59]} 37. Kg1 {[%clk 0:01:25]}  Bd4 {[%clk 0:01:59]} 38. Bc5 {[%clk 0:01:23]}  Rg2+ {[%clk 0:01:57]} 39. Kf1 {[%clk 0:01:23]}  Bxc5 {[%clk 0:01:58]} 40. bxc5 {[%clk 0:01:21]}  Rc2 {[%clk 0:01:58]} 41. Ne5 {[%clk 0:01:21]}  Bb5+ {[%clk 0:01:56]} 42. Kg1 {[%clk 0:01:20]}  a5 {[%clk 0:01:57]} 43. c6 {[%clk 0:01:20]}  bxc6 {[%clk 0:01:57]} 44. Nd7 {[%clk 0:01:20]}  a4 {[%clk 0:01:58]} 45. Ne5 {[%clk 0:01:12]}  a3 {[%clk 0:01:59]} 46. Nd3 {[%clk 0:01:11]}  a2 {[%clk 0:01:59]} 47. Ne1 {[%clk 0:01:12]}  a1=Q {[%clk 0:01:59]} 48. h4 {[%clk 0:01:13]}  Qxe1# {[%clk 0:01:59]} 0-1


[Site "https://www.chess.com"]

[Event "Titled Tuesday Blitz January 31 Early 2023"]
[White "Chylewski, Patryk"]
[Black "Rengifo Blancas, Renzo Jhonathan"]
[WhiteFideId "1186191"]
[BlackFideId "3807185"]
[WhiteElo "2281"]
[BlackElo "2131"]
[Result "1-0"]
[Round "03"]
[TimeControl "180+2"]
[Date "2023.01.31"]
[WhiteClock "0:00:10"]
[BlackClock "0:00:08"]

1. e4 {[%clk 0:03:00]}  e5 {[%clk 0:02:59]} 2. Nf3 {[%clk 0:03:00]}  Nc6 {[%clk 0:02:58]} 3. d4 {[%clk 0:03:00]}  exd4 {[%clk 0:02:58]} 4. Bc4 {[%clk 0:03:00]}  Bc5 {[%clk 0:02:57]} 5. c3 {[%clk 0:03:00]}  Nf6 {[%clk 0:02:57]} 6. e5 {[%clk 0:03:00]}  d5 {[%clk 0:02:56]} 7. Be2 {[%clk 0:03:00]}  Ne4 {[%clk 0:02:54]} 8. cxd4 {[%clk 0:03:00]}  Bb4+ {[%clk 0:02:28]} 9. Bd2 {[%clk 0:02:45]}  Bxd2+ {[%clk 0:02:27]} 10. Nbxd2 {[%clk 0:02:46]}  O-O {[%clk 0:02:27]} 11. O-O {[%clk 0:02:45]}  f6 {[%clk 0:02:26]} 12. Re1 {[%clk 0:02:34]}  Bg4 {[%clk 0:02:23]} 13. exf6 {[%clk 0:02:25]}  Qxf6 {[%clk 0:02:22]} 14. h3 {[%clk 0:02:21]}  Bh5 {[%clk 0:02:21]} 15. Nxe4 {[%clk 0:02:16]}  dxe4 {[%clk 0:02:19]} 16. Bc4+ {[%clk 0:02:17]}  Kh8 {[%clk 0:02:16]} 17. Rxe4 {[%clk 0:02:16]}  Bxf3 {[%clk 0:02:09]} 18. Qxf3 {[%clk 0:02:17]}  Qxf3 {[%clk 0:02:01]} 19. gxf3 {[%clk 0:02:18]}  Rxf3 {[%clk 0:02:01]} 20. Kg2 {[%clk 0:02:15]}  Raf8 {[%clk 0:01:57]} 21. Rf1 {[%clk 0:02:15]}  h6 {[%clk 0:01:51]} 22. d5 {[%clk 0:02:12]}  R3f4 {[%clk 0:01:14]} 23. Rxf4 {[%clk 0:01:59]}  Rxf4 {[%clk 0:01:12]} 24. dxc6 {[%clk 0:01:53]}  Rxc4 {[%clk 0:01:12]} 25. cxb7 {[%clk 0:01:03]}  Rb4 {[%clk 0:01:12]} 26. b3 {[%clk 0:01:03]}  Rxb7 {[%clk 0:01:11]} 27. Rc1 {[%clk 0:01:03]}  Kg8 {[%clk 0:00:58]} 28. Kf3 {[%clk 0:01:02]}  Kf7 {[%clk 0:00:58]} 29. Ke4 {[%clk 0:01:01]}  Ke6 {[%clk 0:00:58]} 30. Rc6+ {[%clk 0:01:01]}  Ke7 {[%clk 0:00:50]} 31. Kf5 {[%clk 0:00:56]}  Rb5+ {[%clk 0:00:43]} 32. Kg6 {[%clk 0:00:50]}  Rg5+ {[%clk 0:00:42]} 33. Kh7 {[%clk 0:00:46]}  Kd8 {[%clk 0:00:33]} 34. Rg6 {[%clk 0:00:35]}  Rh5 {[%clk 0:00:18]} 35. Kxg7 {[%clk 0:00:20]}  Rxh3 {[%clk 0:00:18]} 36. Rxh6 {[%clk 0:00:21]}  Rd3 {[%clk 0:00:14]} 37. f4 {[%clk 0:00:19]}  Ke7 {[%clk 0:00:13]} 38. f5 {[%clk 0:00:18]}  Rg3+ {[%clk 0:00:11]} 39. Rg6 {[%clk 0:00:18]}  Rf3 {[%clk 0:00:11]} 40. f6+ {[%clk 0:00:17]}  Kd7 {[%clk 0:00:09]} 41. Kg8 {[%clk 0:00:09]}  Ke6 {[%clk 0:00:04]} 42. f7+ {[%clk 0:00:08]}  Ke7 {[%clk 0:00:04]} 43. Rg7 {[%clk 0:00:08]}  Kd6 {[%clk 0:00:02]} 44. f8=Q+ {[%clk 0:00:08]}  Rxf8+ {[%clk 0:00:02]} 45. Kxf8 {[%clk 0:00:09]}  a5 {[%clk 0:00:01]} 46. Rg5 {[%clk 0:00:09]}  c6 {[%clk 0:00:01]} 47. Rxa5 {[%clk 0:00:08]}  c5 {[%clk 0:00:02]} 48. Kf7 {[%clk 0:00:08]}  Kc6 {[%clk 0:00:02]} 49. Ke6 {[%clk 0:00:07]}  Kb6 {[%clk 0:00:03]} 50. Ra8 {[%clk 0:00:07]}  Kb5 {[%clk 0:00:04]} 51. Rc8 {[%clk 0:00:07]}  Kb4 {[%clk 0:00:04]} 52. Kd5 {[%clk 0:00:08]}  Ka3 {[%clk 0:00:05]} 53. Rxc5 {[%clk 0:00:08]}  Kxa2 {[%clk 0:00:06]} 54. b4 {[%clk 0:00:08]}  Kb3 {[%clk 0:00:07]} 55. b5 {[%clk 0:00:09]}  Ka4 {[%clk 0:00:07]} 56. b6 {[%clk 0:00:09]}  Kb4 {[%clk 0:00:07]} 57. b7 {[%clk 0:00:10]}  Ka4 {[%clk 0:00:08]} 58. b8=Q {[%clk 0:00:09]}  Ka3 {[%clk 0:00:08]} 59. Ra5# {[%clk 0:00:10]} 1-0


[Site "https://www.chess.com"]

[Event "Titled Tuesday Blitz January 31 Early 2023"]
[White "Panesso Rivera, Henry"]
[Black "Liimatainen, Jero"]
[WhiteFideId "4402707"]
[BlackFideId "509531"]
[WhiteElo "2342"]
[BlackElo "1948"]
[Result "1-0"]
[Round "03"]
[TimeControl "180+2"]
[Date "2023.01.31"]
[WhiteClock "0:00:22"]
[BlackClock "0:00:21"]

1. Nf3 {[%clk 0:03:00]}  c5 {[%clk 0:02:55]} 2. g3 {[%clk 0:02:56]}  g6 {[%clk 0:02:54]} 3. Bg2 {[%clk 0:02:55]}  Bg7 {[%clk 0:02:55]} 4. c4 {[%clk 0:02:54]}  Nc6 {[%clk 0:02:55]} 5. Nc3 {[%clk 0:02:54]}  d6 {[%clk 0:02:56]} 6. d3 {[%clk 0:02:54]}  Bd7 {[%clk 0:02:51]} 7. h4 {[%clk 0:02:52]}  h5 {[%clk 0:02:51]} 8. Bg5 {[%clk 0:02:51]}  Qc8 {[%clk 0:02:44]} 9. Qd2 {[%clk 0:02:48]}  Rb8 {[%clk 0:02:43]} 10. Rb1 {[%clk 0:02:32]}  a6 {[%clk 0:02:40]} 11. a3 {[%clk 0:02:17]}  b5 {[%clk 0:02:37]} 12. b3 {[%clk 0:02:02]}  bxc4 {[%clk 0:02:27]} 13. dxc4 {[%clk 0:01:59]}  Nh6 {[%clk 0:02:19]} 14. O-O {[%clk 0:01:48]}  Nf5 {[%clk 0:02:13]} 15. Nd5 {[%clk 0:01:37]}  f6 {[%clk 0:01:36]} 16. Bf4 {[%clk 0:01:19]}  Kf7 {[%clk 0:01:27]} 17. b4 {[%clk 0:01:14]}  e5 {[%clk 0:01:14]} 18. Be3 {[%clk 0:01:08]}  Ncd4 {[%clk 0:01:08]} 19. Rfc1 {[%clk 0:00:54]}  Be6 {[%clk 0:00:22]} 20. Bxd4 {[%clk 0:00:51]}  Nxd4 {[%clk 0:00:21]} 21. e3 {[%clk 0:00:47]}  Nxf3+ {[%clk 0:00:20]} 22. Bxf3 {[%clk 0:00:48]}  g5 {[%clk 0:00:19]} 23. hxg5 {[%clk 0:00:41]}  fxg5 {[%clk 0:00:19]} 24. bxc5 {[%clk 0:00:31]}  Rxb1 {[%clk 0:00:18]} 25. Rxb1 {[%clk 0:00:31]}  dxc5 {[%clk 0:00:17]} 26. Nb6 {[%clk 0:00:27]}  Qc7 {[%clk 0:00:16]} 27. Bd5 {[%clk 0:00:25]}  Bxd5 {[%clk 0:00:14]} 28. Qxd5+ {[%clk 0:00:25]}  Kg6 {[%clk 0:00:15]} 29. Qe6+ {[%clk 0:00:24]}  Bf6 {[%clk 0:00:15]} 30. Qxf6+ {[%clk 0:00:24]}  Kxf6 {[%clk 0:00:15]} 31. Nd5+ {[%clk 0:00:25]}  Kf5 {[%clk 0:00:15]} 32. Nxc7 {[%clk 0:00:26]}  h4 {[%clk 0:00:16]} 33. gxh4 {[%clk 0:00:25]}  Rxh4 {[%clk 0:00:16]} 34. Rc1 {[%clk 0:00:24]}  Ke4 {[%clk 0:00:16]} 35. Kg2 {[%clk 0:00:21]}  Kd3 {[%clk 0:00:16]} 36. Nxa6 {[%clk 0:00:20]}  Rxc4 {[%clk 0:00:16]} 37. Rxc4 {[%clk 0:00:20]}  Kxc4 {[%clk 0:00:17]} 38. Kf3 {[%clk 0:00:20]}  Kb5 {[%clk 0:00:18]} 39. Nxc5 {[%clk 0:00:20]}  Kxc5 {[%clk 0:00:18]} 40. Ke4 {[%clk 0:00:21]}  Kd6 {[%clk 0:00:19]} 41. a4 {[%clk 0:00:21]}  g4 {[%clk 0:00:19]} 42. a5 {[%clk 0:00:21]}  Kc5 {[%clk 0:00:20]} 43. Kxe5 {[%clk 0:00:21]}  g3 {[%clk 0:00:20]} 44. fxg3 {[%clk 0:00:21]}  Kb5 {[%clk 0:00:20]} 45. g4 {[%clk 0:00:21]}  Kxa5 {[%clk 0:00:21]} 46. g5 {[%clk 0:00:22]} 1-0


[Site "https://www.chess.com"]